bitfinex/quotes_BTCUSD_20251226
["timestamp","ask_amount","ask_price","bid_price","bid_amount"]
[1766772122915,0.00730071,87417.0,87411.0,0.0114402]
[1766772123257,0.00730071,87417.0,87414.0,0.01143981]
[1766772123854,0.00730071,87417.0,87410.0,0.00020066]
[1766772124059,0.01148,87429.0,87410.0,0.00020066]
[1766772124237,0.44995256,87420.0,87410.0,6.6e-07]
[1766772124437,0.0729,87423.0,87410.0,6.6e-07]
[1766772125570,0.44995256,87420.0,87410.0,6.6e-07]
[1766772125706,0.01148,87419.0,87410.0,6.6e-07]
[1766772126509,0.08438,87419.0,87410.0,6.6e-07]
[1766772126705,0.0729,87417.0,87410.0,6.6e-07]
[1766772135681,0.0729,87417.0,87398.0,0.0114419]
[1766772135999,0.07351,87397.0,87390.0,0.06865726]
[1766772136202,0.07331,87397.0,87394.0,0.01144243]
[1766772136406,0.07331,87397.0,87393.0,0.06865499]
[1766772136610,0.07331,87397.0,87393.0,0.01144256]
[1766772136905,0.12678426,87397.0,87394.0,0.01144243]
[1766772137254,0.07331,87397.0,87394.0,0.01144243]
[1766772137483,0.07331,87397.0,87393.0,0.06865498]
[1766772137689,0.07331,87397.0,87393.0,0.01144256]
[1766772137849,0.07331,87397.0,87394.0,0.01144243]
[1766772138050,0.07331,87397.0,87393.0,0.01144256]
[1766772138429,0.008479,87396.0,87393.0,0.01144256]
[1766772139069,0.008479,87396.0,87390.0,0.01144295]
[1766772139258,0.081989,87396.0,87391.0,0.01144282]
[1766772139550,0.081989,87396.0,87393.0,0.01144256]
[1766772139885,0.081989,87396.0,87391.0,0.0686566]
[1766772140135,0.0093469,87395.0,87391.0,0.0686566]
[1766772140338,0.0093469,87395.0,87392.0,0.01144269]
[1766772140698,0.0093469,87395.0,87392.0,0.06865576]
[1766772141617,0.0093469,87395.0,87393.0,0.05721251]
[1766772142650,0.0093469,87395.0,87392.0,0.01144269]
[1766772142816,0.0093469,87395.0,87388.0,0.01144321]
[1766772142817,0.074059,87392.0,87384.0,0.02292374]
[1766772143030,0.074059,87392.0,87377.0,0.06866792]
[1766772143031,0.00055,87384.0,87377.0,0.06866792]
[1766772143235,0.00055,87384.0,87366.0,0.0002]
[1766772143236,0.07406,87384.0,87373.0,0.06867076]
[1766772143442,0.07351,87382.0,87375.0,0.01144492]
[1766772143655,0.45850656,87383.0,87375.0,0.01144492]
[1766772143656,0.07351,87380.0,87375.0,0.01144492]
[1766772143861,0.07351,87380.0,87378.0,0.05722208]
[1766772144032,0.07351,87380.0,87377.0,0.01144749]
[1766772144252,0.07351,87380.0,87377.0,0.00036021]
[1766772145284,0.05349426,87379.0,87377.0,0.00036021]
[1766772146783,0.07351,87380.0,87377.0,0.00036021]
[1766772148261,0.07351,87380.0,87377.0,2.1e-07]
[1766772150099,0.07351,87380.0,87349.0,0.00025103]
[1766772150316,0.07351,87369.0,87361.0,0.01144675]
[1766772150517,0.04584,87384.0,87361.0,0.06868006]
[1766772150518,0.07351,87367.0,87361.0,0.06868006]
[1766772150703,0.07351,87367.0,87362.0,0.01144662]
[1766772151384,0.07315,87367.0,87364.0,0.01144636]
[1766772152785,0.07315,87367.0,87355.0,0.22894821]
[1766772152992,0.000549,87364.0,87358.0,0.01144714]
[1766772153309,0.07351,87365.0,87358.0,0.01144714]
[1766772153695,0.07351,87365.0,87359.0,0.01144701]
[1766772153941,0.07351,87365.0,87358.0,0.01144714]
[1766772154141,0.07351,87365.0,87357.0,0.01144727]
[1766772154363,0.07351,87365.0,87358.0,0.01144714]
[1766772154779,0.07351,87365.0,87357.0,0.01144727]
[1766772154982,0.07351,87365.0,87358.0,0.01144714]
[1766772155180,0.45060499,87370.0,87359.0,0.01144701]
[1766772155721,0.45060499,87370.0,87358.0,0.01144714]
[1766772156057,0.45060499,87370.0,87362.0,0.01144662]
[1766772156268,0.45060499,87370.0,87361.0,0.01144675]
[1766772156269,0.37560499,87370.0,87359.0,0.01144701]
[1766772156597,0.37560499,87370.0,87360.0,0.01164688]
[1766772156951,0.37560499,87370.0,87361.0,0.01144675]
[1766772157333,0.37560499,87370.0,87360.0,0.01164688]
[1766772157465,0.37560499,87370.0,87360.0,0.0002]
[1766772157669,0.41431349,87370.0,87353.0,0.0114478]
[1766772157871,0.48782349,87370.0,87353.0,0.0114478]
[1766772158075,0.48782349,87370.0,87355.0,0.01144754]
[1766772158289,0.48782349,87370.0,87355.0,0.06868509]
[1766772158488,0.48782349,87370.0,87357.0,0.01144727]
[1766772158690,0.48782349,87370.0,87358.0,0.01144714]
[1766772158927,0.48782349,87370.0,87357.0,0.01144727]
[1766772159232,0.04993035,87369.0,87357.0,0.01144727]
[1766772159576,0.04993035,87369.0,87356.0,0.01144741]
[1766772160245,0.07351,87368.0,87358.0,0.01144714]
[1766772160610,0.07351,87368.0,87359.0,0.01144701]
[1766772161357,0.07351,87368.0,87360.0,0.01144688]
[1766772161546,0.07351,87368.0,87359.0,0.01144701]
[1766772162617,0.07351,87368.0,87357.0,0.01144727]
[1766772162759,0.07351,87366.0,87355.0,0.01144754]
[1766772163176,0.07351,87366.0,87357.0,0.01144727]
[1766772163409,0.07351,87366.0,87358.0,0.01144714]
[1766772164312,0.07351,87366.0,87361.0,0.01144675]
[1766772164880,0.07351,87366.0,87360.0,0.01144688]
[1766772165286,0.07351,87366.0,87361.0,0.01144675]
[1766772165841,0.07351,87366.0,87360.0,0.01144688]
[1766772167256,0.07351,87366.0,87361.0,0.01144675]
[1766772168167,0.07351,87366.0,87360.0,0.01144688]
[1766772168863,0.07351,87366.0,87361.0,0.01144675]
[1766772169097,0.07351,87366.0,87360.0,0.01144688]
[1766772170048,0.07351,87366.0,87361.0,0.01144675]
[1766772170254,0.07351,87366.0,87359.0,0.01144701]
[1766772170725,0.07351,87366.0,87361.0,0.01144675]
[1766772171023,0.07351,87366.0,87362.0,0.01144662]
[1766772171978,0.07351,87366.0,87363.0,0.01144649]
[1766772172171,0.07351,87366.0,87362.0,0.01144662]
[1766772172492,0.07351,87366.0,87361.0,0.01144675]
[1766772173396,0.07351,87366.0,87360.0,0.06868102]
[1766772173597,0.07351,87366.0,87361.0,0.01144675]
[1766772173808,0.07351,87366.0,87360.0,0.06868102]
[1766772174011,0.07351,87366.0,87359.0,0.01144701]
[1766772174184,0.07351,87366.0,87360.0,0.01144688]
[1766772174630,0.07351,87366.0,87358.0,0.01144714]
[1766772174829,0.000899,87360.0,87358.0,0.01144714]
[1766772175005,0.1270695,87366.0,87359.0,0.01144701]
[1766772175006,0.08135,87364.0,87359.0,0.01144701]
[1766772175244,0.08135,87364.0,87358.0,0.01144714]
[1766772175386,0.08135,87364.0,87357.0,0.01144727]
[1766772175739,0.08135,87364.0,87358.0,0.01144714]
[1766772175900,0.08135,87364.0,87357.0,0.06868328]
[1766772175901,0.08135,87364.0,87357.0,0.01144727]
[1766772176302,0.1345455,87364.0,87358.0,0.01144714]
[1766772176807,0.1345455,87364.0,87359.0,0.01144701]
[1766772178736,0.1345455,87364.0,87360.0,0.01144688]
[1766772179326,0.08135,87364.0,87360.0,0.01144688]
[1766772179529,0.08135,87364.0,87361.0,0.01144675]
[1766772179728,0.08135,87364.0,87360.0,0.01144688]
[1766772179927,0.08135,87364.0,87359.0,0.01144701]
[1766772180167,0.000349,87359.0,87357.0,0.01144727]
[1766772180343,0.0073397,87358.0,87357.0,0.01144727]
[1766772180646,0.0071397,87358.0,87357.0,0.01144727]
[1766772181184,0.08135,87364.0,87358.0,0.01144714]
[1766772181743,0.08135,87364.0,87359.0,0.01144701]
[1766772182289,0.08135,87364.0,87358.0,0.01144714]
[1766772182498,0.08135,87364.0,87356.0,0.06868395]
[1766772182638,0.08135,87364.0,87357.0,0.01144727]
[1766772182841,0.08135,87364.0,87359.0,0.01144701]
[1766772183065,0.08135,87364.0,87358.0,0.01144714]
[1766772183606,0.008135,87363.0,87358.0,0.01144714]
[1766772183765,0.008135,87363.0,87359.0,0.01144701]
[1766772184191,0.008135,87363.0,87358.0,0.01144714]
[1766772184392,0.08135,87364.0,87358.0,0.01144714]
[1766772185255,0.08135,87364.0,87357.0,0.06868319]
[1766772185547,0.08135,87364.0,87357.0,0.01144727]
[1766772185886,0.08135,87364.0,87358.0,0.01144714]
[1766772187929,0.08135,87364.0,87357.0,0.01144727]
[1766772188233,0.08135,87364.0,87356.0,0.06868407]
[1766772188234,0.06987,87363.0,87356.0,0.06868407]
[1766772188378,0.000549,87357.0,87352.0,0.05723924]
[1766772188580,0.000549,87357.0,87353.0,0.0114478]
[1766772189051,0.06987,87363.0,87353.0,0.0114478]
[1766772189233,0.06987,87361.0,87352.0,0.06868717]
[1766772189438,0.06948677,87361.0,87354.0,0.01144767]
[1766772189655,0.06948677,87361.0,87355.0,0.01144754]
[1766772189995,0.05778629,87361.0,87358.0,0.06868252]
[1766772190783,0.05778629,87361.0,87358.0,0.01144714]
[1766772190995,0.06471292,87361.0,87357.0,0.01144727]
[1766772191218,0.06471292,87361.0,87358.0,0.01144714]
[1766772191731,0.05778629,87361.0,87357.0,0.01144727]
[1766772192709,0.05778629,87361.0,87358.0,0.01144714]
[1766772193006,0.05778629,87361.0,87357.0,0.01144727]
[1766772194154,0.05778629,87361.0,87356.0,0.01144741]
[1766772194309,0.05778629,87361.0,87355.0,0.01144754]
[1766772194488,0.00692663,87360.0,87356.0,0.01144741]
[1766772194690,0.00692663,87360.0,87355.0,0.01144754]
[1766772194896,0.00692663,87360.0,87356.0,0.01144741]
[1766772195094,0.00692663,87360.0,87355.0,0.01144754]
[1766772196290,0.00692663,87360.0,87352.0,0.01144793]
[1766772196434,0.000549,87355.0,87352.0,0.01144793]
[1766772196634,0.0701,87360.0,87353.0,0.0114478]
[1766772196838,0.0701,87360.0,87354.0,0.01144767]
[1766772197047,0.0701,87360.0,87353.0,0.0114478]
[1766772197251,0.0701,87360.0,87355.0,0.01144754]
[1766772197460,0.0703,87380.0,87372.0,0.05722614]
[1766772197668,0.01148,87379.0,87372.0,0.01144531]
[1766772197909,0.0002,87390.0,87382.0,0.011444]
[1766772198105,0.02222868,87389.0,87381.0,0.01144413]
[1766772198286,0.0701,87387.0,87379.0,0.01144439]
[1766772198644,0.0701,87387.0,87376.0,0.01144479]
[1766772198645,0.07065,87381.0,87376.0,0.01144479]
[1766772199007,0.0701,87381.0,87375.0,0.01144492]
[1766772199219,0.0701,87381.0,87376.0,0.01155186]
[1766772199892,0.0701,87381.0,87376.0,0.00010707]
[1766772200151,0.0701,87381.0,87376.0,0.01155186]
[1766772200549,0.07711,87381.0,87377.0,0.01144465]
[1766772201005,0.0701,87388.0,87381.0,0.000549]
[1766772201213,0.0701,87388.0,87382.0,0.011444]
[1766772201408,0.0002,87390.0,87387.0,0.01144334]
[1766772201614,0.0002,87390.0,87385.0,0.01144361]
[1766772201806,0.0002,87390.0,87386.0,0.01144348]
[1766772201994,0.07065,87386.0,87376.0,0.01155186]
[1766772202202,0.0701,87386.0,87376.0,0.00010707]
[1766772203169,0.0701,87386.0,87376.0,0.01155186]
[1766772203375,0.0701,87386.0,87377.0,0.01144465]
[1766772203612,0.0002,87390.0,87386.0,0.000549]
[1766772203743,0.01148,87389.0,87383.0,0.01144387]
[1766772203943,0.0002,87390.0,87383.0,0.01144387]
[1766772204557,0.01148,87389.0,87384.0,0.01144374]
[1766772204756,0.010931,87389.0,87383.0,0.01144387]
[1766772204936,0.010931,87389.0,87381.0,0.0631085]
[1766772205132,0.010931,87389.0,87382.0,0.011444]
[1766772205333,0.0002,87390.0,87382.0,0.011444]
[1766772205748,0.01148,87389.0,87382.0,0.011444]
[1766772206362,0.01148,87389.0,87383.0,0.01144387]
[1766772207094,0.01148,87389.0,87384.0,0.01144374]
[1766772207836,0.01148,87389.0,87385.0,0.01144361]
[1766772208191,0.01148,87389.0,87386.0,0.01144348]
[1766772208640,0.01148,87389.0,87385.0,0.01144361]
[1766772208844,0.0002,87390.0,87385.0,0.01144361]
[1766772209211,0.01168,87390.0,87386.0,0.01144348]
[1766772209403,0.01168,87390.0,87387.0,0.01144334]
[1766772209763,0.01168,87390.0,87381.0,0.01144413]
[1766772209764,0.0701,87386.0,87366.0,0.0114461]
[1766772209967,0.0701,87379.0,87366.0,0.0114461]
[1766772210170,0.0701,87379.0,87357.0,0.09511154]
[1766772210171,0.0701,87377.0,87359.0,0.01144701]
[1766772210392,0.01148,87378.0,87359.0,8.997e-05]
[1766772210393,0.0701,87369.0,87359.0,8.997e-05]
[1766772210633,0.0701,87367.0,87354.0,0.01144767]
[1766772210823,8.9e-05,87359.0,87354.0,0.01144767]
[1766772211029,8.9e-05,87359.0,87351.0,0.0686879]
[1766772211030,8.9e-05,87359.0,87352.0,0.01144793]
[1766772211200,0.0701,87361.0,87355.0,0.01144754]
[1766772211402,0.0701,87361.0,87356.0,0.01144741]
[1766772211606,0.0701,87361.0,87355.0,0.01144754]
[1766772211940,0.0701,87361.0,87356.0,0.01144741]
[1766772212146,0.0635505,87368.0,87355.0,0.01144754]
[1766772212147,0.1336505,87368.0,87355.0,0.06868495]
[1766772212347,0.08158,87368.0,87356.0,0.01144741]
[1766772212525,0.0701,87366.0,87354.0,0.01144767]
[1766772213073,0.0701,87366.0,87353.0,0.0114478]
[1766772213277,0.0701,87366.0,87352.0,0.01144793]
[1766772213626,0.0701,87366.0,87352.0,0.00494656]
[1766772213828,0.0701,87365.0,87354.0,0.01144767]
[1766772214341,0.0701,87365.0,87352.0,0.01144793]
[1766772214545,0.0701,87365.0,87348.0,0.01148]
[1766772214546,0.0701,87361.0,87348.0,0.05154415]
[1766772214896,0.0701,87361.0,87349.0,0.01144832]
[1766772215046,0.0701,87361.0,87352.0,0.01144793]
[1766772215245,0.0701,87361.0,87347.0,0.05764286]
[1766772215450,0.1347985,87361.0,87347.0,0.0004]
[1766772215655,0.1347985,87361.0,87341.0,0.01164937]
[1766772215656,0.0701,87346.0,87329.0,0.01145094]
[1766772215861,0.0004,87347.0,87329.0,0.01145094]
[1766772215862,0.0701,87345.0,87336.0,0.01145003]
[1766772216036,0.01148,87345.0,87342.0,0.01144924]
[1766772216419,0.01148,87345.0,87339.0,0.01144963]
[1766772216825,0.01148,87345.0,87341.0,0.01144937]
[1766772217043,0.01148,87345.0,87340.0,0.00589887]
[1766772217246,0.01148,87345.0,87341.0,0.01144937]
[1766772217448,0.019638,87345.0,87340.0,0.0114495]
[1766772217644,0.01148,87345.0,87344.0,0.01144898]
[1766772217853,0.07571199,87377.0,87344.0,0.01144898]
[1766772217854,0.01148,87353.0,87345.0,0.05724364]
[1766772218077,0.01148,87353.0,87346.0,0.01144872]
[1766772218773,0.01148,87353.0,87347.0,0.01144859]
[1766772218974,0.01148,87353.0,87349.0,0.01144832]
[1766772219221,0.01148,87353.0,87348.0,0.01144845]
[1766772219768,0.01148,87353.0,87347.0,0.01144859]
[1766772219769,0.01148,87357.0,87349.0,0.01144832]
[1766772219976,0.08158,87357.0,87347.0,0.01144859]
[1766772220657,0.08158,87357.0,87348.0,0.01144845]
[1766772220865,0.08158,87357.0,87346.0,0.01144872]
[1766772220866,0.001099,87348.0,87308.0,0.04096742]
[1766772221145,0.0701,87339.0,87320.0,0.45065748]
[1766772221356,0.05732,87347.0,87320.0,0.45065748]
[1766772221357,0.0701,87337.0,87323.0,0.01145173]
[1766772221486,0.0659499,87347.0,87324.0,0.0114516]
[1766772221487,0.0701,87335.0,87324.0,0.0114516]
[1766772221686,0.0701,87335.0,87326.0,0.01145134]
[1766772221895,0.0701,87335.0,87334.0,0.00047064]
[1766772222095,0.01148,87335.0,87334.0,0.00047064]
[1766772223186,0.0701,87344.0,87334.0,0.01192093]
[1766772223316,0.00010705,87348.0,87334.0,0.01145029]
[1766772223317,0.08158,87342.0,87334.0,0.01145029]
[1766772223521,0.08158,87342.0,87341.0,0.00025106]
[1766772223722,0.08158,87342.0,87341.0,6e-08]
[1766772224412,0.08158,87342.0,87332.0,0.05725272]
[1766772224413,0.08158,87342.0,87333.0,0.01145042]
[1766772224578,0.08158,87342.0,87330.0,0.51936224]
[1766772224804,0.08158,87342.0,87331.0,0.01145068]
[1766772224982,0.08158,87342.0,87333.0,0.01145042]
[1766772225187,0.08158,87342.0,87336.0,0.01145003]
[1766772225381,0.0002,87347.0,87333.0,0.01145042]
[1766772225382,0.0002,87347.0,87342.0,0.01144924]
[1766772225596,0.05722751,87371.0,87330.0,0.45065748]
[1766772225597,0.07487,87359.0,87344.0,0.01144898]
[1766772225806,0.01148,87354.0,87349.0,0.45065748]
[1766772226028,0.01148,87354.0,87345.0,0.01144885]
[1766772226182,0.01148,87354.0,87344.0,0.46210646]
[1766772226374,0.01148,87354.0,87345.0,0.01144885]
[1766772226698,0.01148,87354.0,87346.0,0.01144872]
[1766772227061,0.01148,87354.0,87345.0,0.01144885]
[1766772227479,0.01148,87354.0,87346.0,0.01144872]
[1766772227681,0.01148,87354.0,87345.0,0.01144885]
[1766772228298,0.01148,87354.0,87346.0,0.01144872]
[1766772228833,0.008635,87353.0,87345.0,0.01144885]
[1766772229036,0.008635,87353.0,87342.0,0.06869523]
[1766772229237,0.001099,87345.0,87337.0,0.0229299]
[1766772229481,0.07487,87353.0,87331.0,0.06870349]
[1766772229677,0.45065748,87360.0,87331.0,0.00010705]
[1766772229678,0.07487,87345.0,87331.0,0.00010705]
[1766772229976,0.45065748,87350.0,87331.0,0.00010705]
[1766772229977,0.07487,87343.0,87331.0,0.00010705]
[1766772230293,0.51934718,87350.0,87327.0,0.0002]
[1766772230294,0.07487,87341.0,87327.0,0.0002]
[1766772231446,0.07487,87339.0,87318.0,0.01145239]
[1766772231679,0.07487,87339.0,87320.0,0.46210961]
[1766772231881,0.07487,87339.0,87321.0,0.01145199]
[1766772232427,0.07487,87339.0,87322.0,0.01145186]
[1766772232686,0.07487,87337.0,87322.0,0.01145186]
[1766772233183,0.07487,87337.0,87326.0,0.01145134]
[1766772233412,0.07487,87337.0,87325.0,0.01145147]
[1766772233755,0.07487,87337.0,87326.0,0.01145134]
[1766772234392,0.07487,87337.0,87324.0,0.0114516]
[1766772234540,0.01148,87342.0,87320.0,0.46210961]
[1766772234541,0.000242,87324.0,87320.0,0.01145213]
[1766772235188,0.07487,87332.0,87321.0,0.01145199]
[1766772235368,0.07487,87332.0,87320.0,0.01145213]
[1766772235547,0.07487,87332.0,87320.0,0.46210961]
[1766772235761,0.07487,87332.0,87323.0,0.01145173]
[1766772235967,0.07487,87332.0,87324.0,0.0114516]
[1766772236165,0.07487,87332.0,87325.0,0.01145147]
[1766772236371,0.07487,87332.0,87326.0,0.01145134]
[1766772237018,0.07487,87332.0,87323.0,0.06870998]
[1766772237454,0.07487,87332.0,87324.0,0.0114516]
[1766772237894,0.07487,87332.0,87325.0,0.01145147]
[1766772238899,0.07487,87332.0,87326.0,0.01145134]
[1766772239720,0.0002,87341.0,87328.0,0.01145108]
[1766772239923,0.08635,87340.0,87329.0,0.01145094]
[1766772240122,0.08635,87340.0,87327.0,0.01145121]
[1766772240712,0.08635,87340.0,87323.0,0.01145173]
[1766772240713,0.07487,87340.0,87323.0,0.00025117]
[1766772240883,0.0114461,87366.0,87323.0,0.00025117]
[1766772240884,0.01148,87345.0,87339.0,0.01144963]
[1766772241024,0.01148,87345.0,87338.0,0.01144976]
[1766772241256,0.07487,87349.0,87338.0,0.01144976]
[1766772241456,0.07487,87349.0,87341.0,0.01144937]
[1766772241697,0.008635,87348.0,87338.0,0.01144976]
[1766772241895,0.07487,87349.0,87338.0,0.01144976]
[1766772242456,0.07487,87349.0,87339.0,0.01144963]
[1766772242754,0.07487,87349.0,87338.0,0.01144976]
[1766772242995,0.07487,87349.0,87339.0,0.01144963]
[1766772243405,0.01148,87348.0,87340.0,0.0114495]
[1766772243609,0.01148,87348.0,87338.0,0.01144976]
[1766772243809,0.008635,87347.0,87338.0,0.01144976]
[1766772244186,0.008635,87347.0,87340.0,0.0114495]
[1766772244467,0.07487,87361.0,87351.0,0.01144806]
[1766772244708,0.01148,87360.0,87349.0,0.06868952]
[1766772245031,0.08635,87360.0,87349.0,0.01144832]
[1766772245376,0.08635,87360.0,87348.0,0.01144845]
[1766772245571,0.08642774,87360.0,87348.0,0.01144845]
[1766772245794,0.08642774,87360.0,87353.0,0.0114478]
[1766772245990,0.08642774,87360.0,87357.0,0.01144727]
[1766772246227,0.07494774,87360.0,87357.0,0.01144727]
[1766772246745,7.774e-05,87360.0,87357.0,0.01144727]
[1766772247266,7.774e-05,87360.0,87358.0,0.05723574]
[1766772247424,0.075969,87358.0,87350.0,0.01148]
[1766772247631,0.00877267,87357.0,87350.0,0.01148]
[1766772247994,0.00877267,87357.0,87350.0,0.02292819]
[1766772248192,0.00877267,87357.0,87350.0,0.01148]
[1766772248434,0.00877267,87357.0,87350.0,0.00248]
[1766772249249,0.07487,87358.0,87351.0,0.01144806]
[1766772249459,7.774e-05,87360.0,87351.0,0.01144806]
[1766772249636,0.0002,87363.0,87350.0,0.01392819]
[1766772249989,0.0002,87363.0,87350.0,0.00255774]
[1766772250193,0.0002,87363.0,87352.0,0.01144793]
[1766772250693,0.0002,87363.0,87351.0,0.01144806]
[1766772250971,0.0002,87363.0,87352.0,0.01144793]
[1766772251202,0.07507,87363.0,87351.0,0.01144806]
[1766772251472,0.07507,87363.0,87350.0,0.07124649]
[1766772251473,0.07507,87363.0,87350.0,0.01400593]
[1766772252174,0.083725,87363.0,87350.0,0.01400593]
[1766772252339,0.083725,87363.0,87351.0,0.01144806]
[1766772252969,0.083725,87363.0,87353.0,0.0114478]
[1766772253741,0.083725,87363.0,87352.0,0.01144793]
[1766772254300,0.083725,87363.0,87351.0,0.01144806]
[1766772254455,0.083725,87363.0,87350.0,0.01400593]
[1766772254661,0.083725,87363.0,87353.0,0.0114478]
[1766772254877,0.083725,87363.0,87354.0,0.01144767]
[1766772255076,0.07438,87361.0,87351.0,0.06868836]
[1766772255281,0.07438,87361.0,87351.0,0.06309436]
[1766772255482,0.07438,87361.0,87351.0,0.03809436]
[1766772255665,0.07438,87361.0,87353.0,0.0114478]
[1766772256609,0.07438,87361.0,87353.0,0.0058478]
[1766772256923,0.07438,87361.0,87351.0,0.04394242]
[1766772257135,0.0002,87363.0,87351.0,0.04394242]
[1766772257136,0.07438,87359.0,87351.0,0.04394242]
[1766772257685,0.07438,87359.0,87353.0,0.0114478]
[1766772257897,0.07438,87359.0,87354.0,0.01144767]
[1766772258357,0.07438,87359.0,87353.0,0.0114478]
[1766772258565,0.07438,87359.0,87354.0,0.01144767]
[1766772259309,0.07438,87359.0,87355.0,0.01144754]
[1766772259514,0.07438,87359.0,87356.0,0.01144741]
[1766772259988,0.0002,87363.0,87356.0,0.01144741]
[1766772260309,0.01148,87364.0,87356.0,0.01144741]
[1766772260548,0.07438,87363.0,87356.0,0.01144741]
[1766772261974,0.07438,87363.0,87357.0,0.01144727]
[1766772262177,0.07438,87363.0,87356.0,0.01144741]
[1766772262339,0.07438,87363.0,87357.0,0.01144727]
[1766772262535,0.07438,87363.0,87356.0,0.01144741]
[1766772263182,0.07438,87363.0,87357.0,0.01144727]
[1766772263764,0.07438,87363.0,87358.0,0.01144714]
[1766772264161,0.07438,87363.0,87357.0,0.01144727]
[1766772264361,0.07438,87363.0,87355.0,0.06868495]
[1766772265196,0.07438,87363.0,87354.0,0.01144767]
[1766772265558,0.07438,87363.0,87355.0,0.01144754]
[1766772266384,0.07438,87363.0,87356.0,0.01144741]
[1766772266592,0.07438,87363.0,87355.0,0.01144754]
[1766772267303,0.07438,87363.0,87356.0,0.01144741]
[1766772267505,0.07438,87363.0,87355.0,0.01144754]
[1766772268313,0.07438,87363.0,87356.0,0.01144741]
[1766772269696,0.07438,87363.0,87355.0,0.06413219]
[1766772270515,0.07438,87363.0,87357.0,0.01144727]
[1766772271115,0.07438,87363.0,87359.0,0.01144701]
[1766772271325,0.07438,87363.0,87357.0,0.01144727]
[1766772271326,0.07438,87363.0,87358.0,0.01144714]
[1766772271491,0.07438,87363.0,87359.0,0.01144701]
[1766772271695,0.07438,87363.0,87358.0,0.01144714]
[1766772271919,0.07438,87363.0,87359.0,0.01144701]
[1766772272675,0.07438,87363.0,87360.0,0.01144688]
[1766772273023,0.07438,87369.0,87366.0,0.0114461]
[1766772273204,0.01148,87369.0,87366.0,0.0114461]
[1766772273435,0.01148,87369.0,87366.0,0.06867627]
[1766772274272,0.01148,87369.0,87366.0,0.0114461]
[1766772275119,0.01168,87373.0,87372.0,0.05722657]
[1766772275310,0.01168,87373.0,87370.0,0.06867279]
[1766772276875,0.01168,87373.0,87370.0,0.04767279]
[1766772277213,0.01168,87373.0,87368.0,0.05722885]
[1766772277422,0.01168,87373.0,87370.0,0.01144557]
[1766772278317,0.01168,87373.0,87369.0,0.0114457]
[1766772278622,0.01168,87373.0,87370.0,0.01144557]
[1766772278782,0.02487,87373.0,87370.0,0.01144557]
[1766772279317,0.01168,87373.0,87370.0,0.01144557]
[1766772279742,0.01168,87373.0,87369.0,0.0114457]
[1766772279957,0.01168,87373.0,87370.0,0.01144557]
[1766772281546,0.01168,87373.0,87369.0,0.0114457]
[1766772283076,0.01168,87373.0,87370.0,0.01144557]
[1766772283417,0.01168,87373.0,87369.0,0.0114457]
[1766772283902,0.068639,87369.0,87360.0,0.45042061]
[1766772284040,0.06809,87369.0,87361.0,0.01144675]
[1766772284240,0.06809,87369.0,87360.0,0.46186749]
[1766772284464,0.06809,87369.0,87361.0,0.01144675]
[1766772284664,0.076067,87369.0,87361.0,0.01144675]
[1766772285552,0.076067,87369.0,87362.0,0.01144662]
[1766772286764,0.076067,87369.0,87363.0,0.01144649]
[1766772286971,0.067541,87369.0,87365.0,0.01144623]
[1766772287176,0.01168,87373.0,87364.0,0.06867785]
[1766772287177,0.08644,87373.0,87364.0,0.06867785]
[1766772287379,0.08644,87373.0,87363.0,0.01144649]
[1766772287573,0.08644,87373.0,87362.0,0.01144662]
[1766772287867,0.08644,87373.0,87360.0,0.46186749]
[1766772287868,0.07476,87371.0,87360.0,0.46186749]
[1766772288065,0.07476,87371.0,87360.0,0.45042061]
[1766772289920,0.07476,87371.0,87353.0,0.0688865]
[1766772290097,0.07476,87369.0,87353.0,0.0002]
[1766772290325,0.05,87363.0,87353.0,0.0002]
[1766772290528,0.07476,87362.0,87353.0,0.0002]
[1766772290655,0.07476,87360.0,87353.0,0.0002]
[1766772291214,0.07476,87360.0,87353.0,0.0116478]
[1766772291434,0.07476,87360.0,87353.0,0.0002]
[1766772299573,0.074211,87360.0,87354.0,0.01144767]
[1766772301410,0.074211,87360.0,87354.0,0.06868559]
[1766772301624,0.0002,87373.0,87355.0,0.13150215]
[1766772301793,0.01168,87373.0,87370.0,0.01144557]
[1766772301975,0.07476,87380.0,87377.0,0.01144465]
[1766772302177,0.48152805,87390.0,87383.0,0.05721936]
[1766772302178,0.0002,87390.0,87383.0,0.05721936]
[1766772302403,0.07476,87389.0,87386.0,0.01144348]
[1766772302604,0.0002,87390.0,87385.0,0.01144361]
[1766772302806,0.00055,87385.0,87382.0,0.011444]
[1766772303281,0.0002,87390.0,87379.0,0.05722185]
[1766772303484,0.00030724,87390.0,87382.0,0.011444]
[1766772303692,0.00030724,87390.0,87382.0,0.06866401]
[1766772303899,0.00030724,87390.0,87384.0,0.01144374]
[1766772304110,0.00030724,87390.0,87387.0,0.01144334]
[1766772304304,0.07476,87395.0,87390.0,0.000307]
[1766772304507,0.07476,87395.0,87391.0,0.01144282]
[1766772304508,0.07511737,87395.0,87391.0,0.01144282]
[1766772304710,0.00035737,87395.0,87392.0,0.01144269]
[1766772304940,0.01148,87398.0,87387.0,0.01144334]
[1766772304941,0.01148,87398.0,87387.0,0.05721674]
[1766772305163,0.01148,87398.0,87389.0,0.01144308]
[1766772305376,0.01148,87398.0,87388.0,0.46186382]
[1766772305553,0.01148,87398.0,87384.0,0.01148]
[1766772305554,0.000242,87388.0,87384.0,0.01148]
[1766772305754,0.08624,87398.0,87384.0,0.02292374]
[1766772306157,0.08624,87398.0,87387.0,0.01144334]
[1766772306484,0.08624,87398.0,87386.0,0.01144348]
[1766772306665,0.08624,87398.0,87387.0,0.01144334]
[1766772307060,0.08624,87398.0,87384.0,0.02292374]
[1766772308380,0.08624,87398.0,87385.0,0.01144361]
[1766772308750,0.08624,87398.0,87387.0,0.01144334]
[1766772308949,0.08624,87398.0,87386.0,0.01144348]
[1766772309308,0.020104,87398.0,87385.0,0.01144361]
[1766772309498,0.07476,87397.0,87385.0,0.01144361]
[1766772309703,0.07476,87397.0,87384.0,0.01148]
[1766772310251,0.07476,87397.0,87384.0,0.02292374]
[1766772310813,0.07476,87397.0,87389.0,0.01144308]
[1766772311228,0.07476,87397.0,87388.0,0.01144321]
[1766772311799,0.07476,87397.0,87389.0,0.01144308]
[1766772312193,0.07476,87397.0,87388.0,0.01144321]
[1766772312410,0.07476,87397.0,87387.0,0.01144334]
[1766772312411,0.07476,87397.0,87394.0,0.01144243]
[1766772312613,0.01148,87399.0,87396.0,0.06865302]